Cogmind - Beta 17 @@@ ROGUE MODE // 2026.07.26 @ 17:15:29 Player: gorb Result: Destroyed by G-34 Mercenary with Small Laser Performance ------------- Evolutions (1) 500 Regions Visited (3) 600 Robots Destroyed (12) 60 Value Destroyed (209) 209 Prototype IDs (0) 0 Alien Tech Used (0) 0 Bonus (0) 0 TOTAL SCORE: 1369 Bonus ------- None Cogmind --------- Core Integrity 0/400 Matter 300/300 Energy 100/100 System Corruption 0% Temperature Cool (33) Movement Core (350) Ox6 Location -9/Materials Parts ------- > --- POWER (1) -------- (None) > --- PROPULSION (2) --- (None) > --- UTILITY (4) ------ Large Storage Unit Signal Interpreter > --- WEAPON (2) ------- (None) > --- INVENTORY (15) --- Wheel Compact Wheel Peak State ------------ > --- POWER ------------ Light Ion Engine > --- PROPULSION ------- Aluminum Leg Aluminum Leg > --- UTILITY ---------- Large Storage Unit Sensor Array Signal Interpreter ECM Suite > --- WEAPON ----------- Shotgun Shotgun > --- INVENTORY -------- Wheel Compact Wheel Mining Claw [Rating: 11] Favorites ----------- Power Ion Engine Engine Ion Engine Propulsion Light Treads Treads Light Treads Leg Aluminum Leg Wheel Compact Wheel Utility Large Storage Unit Device ECM Suite Storage Large Storage Unit Processor Signal Interpreter Weapon Shotgun Energy Gun Medium Laser Ballistic Gun Shotgun Slashing Weapon Mining Claw Build | -11 -10 -10 -9 ------- Run | Yrd Mat Min Mat Slots Evolved 2 | . . . 2 Power . | . . . . Propulsion . | . . . . Utility 2 | . . . 2 Weapon . | . . . . Parts Attached 21 | 8 4 7 2 Power 3 | 1 . 2 . Engine 3 | 1 . 2 . Core . | . . . . Reactor . | . . . . Propulsion 5 | 3 . 2 . Treads 2 | 2 . . . Leg 2 | . . 2 . Wheel 1 | 1 . . . Hover . | . . . . Flight . | . . . . Utility 7 | 1 4 1 1 Device 2 | . 1 1 . Storage 3 | 1 2 . . Processor 2 | . 1 . 1 Hackware . | . . . . Protection . | . . . . Artifact . | . . . . Weapon 6 | 3 . 2 1 Energy Gun 1 | 1 . . . Energy Cannon . | . . . . Ballistic Gun 4 | 2 . 2 . Ballistic Cannon . | . . . . Launcher . | . . . . Special Weapon . | . . . . Impact Weapon . | . . . . Slashing Weapon 1 | . . . 1 Piercing Weapon . | . . . . Special Melee Weapon . | . . . . Unidentified Prototypes . | . . . . Parts Lost 13 | . . 5 8 Power 3 | . . 2 1 Propulsion 4 | . . 2 2 Utility 3 | . . 1 2 Weapon 3 | . . . 3 Highest Loss Streak 5 | . . 3 5 To Critical Strikes . | . . . . Average Backups 6 | 4 8 8 2 Power 1 | . 1 1 . Propulsion 3 | 2 4 2 2 Utility . | . . 2 . Weapon 1 | . 1 1 . Tool/Special . | . . . . Unused Backups 2 | . 1 . 1 Power . | . . . . Propulsion 2 | . 1 . 1 Utility . | . . . . Weapon . | . . . . Tool/Special . | . . . . Average Slot Usage (%) 87 | . 92 92 78 Engine 11 | . 14 10 9 Treads 14 | . 28 8 . Leg 7 | . . 15 14 Device 7 | . 2 3 15 Storage 12 | . 14 14 11 Processor 7 | . 4 10 10 Ballistic Gun 22 | . 28 28 12 Slashing Weapon 2 | . . . 6 Peak Build Rating 11 | 6 9 10 11 Average Rating 7 | 4 7 8 8 On Entrance 6 | . 6 9 9 Avg Prop Armor Cover (%) 15 | 15 . . . Naked Turns . | . . . . Heaviest Build 32 | 13 29 31 32 Greatest Support 40 | 20 40 40 20 Greatest Overweight (x) 9 | . . 9 7 Average Overweight (x) . | . . . 1 Largest Inventory Capacity 25 | 8 25 15 15 Average Capacity 14 | 6 14 15 15 Most Carried 13 | 5 13 12 4 Average Carried 6 | 4 8 8 2 Final Capacity 15 | 8 15 15 15 Final Carried 12 | 5 12 5 2 Class Distribution -------------------- 100% | Mutant Dominant Class ---------------- Mutant | -10/Materials Mutant | -10/Mines Mutant | -9/Materials Resources | -11 -10 -10 -9 ----------- Run | Yrd Mat Min Mat Matter Collected 612 | 230 143 178 61 Remotely . | . . . . Salvage Created 427 | . 270 77 80 Parts 24 | . 19 . 5 Haulers Intercepted . | . . . . Recyclers Shooed 3 | . 2 1 . Parts Field Recycled . | . . . . Retrieved Matter . | . . . . Parts Self-Destructed . | . . . . Prevented . | . . . . Parts Restored . | . . . . Kills | -11 -10 -10 -9 ------- Run | Yrd Mat Min Mat Combat Hostiles Destroyed 16 | . 6 8 2 Melee 1 | . . . 1 Guns 15 | . 6 8 1 Classes Destroyed 7 | . 3 2 2 Builder 1 | . 1 . . Recycler 2 | . 2 . . Swarmer 6 | . 6 . . Grunt 1 | . . . 1 Sentry 1 | . . . 1 Demolisher 1 | . . 1 . Assembled 7 | . . 7 . Best Kill Streak 7 | . 4 7 1 Combat Bots Only 7 | . 3 7 1 Max Kills in Single Turn 2 | . 1 2 1 Gunslinging . | . . . . Exploded . | . . . . Melee 1 | . . . 1 Uniques/NPCs Destroyed . | . . . . Combat | -11 -10 -10 -9 -------- Run | Yrd Mat Min Mat Hostile Shots Fired 167 | . 22 58 87 Missed 42 | . 4 13 25 Hits 125 | . 18 45 62 Melee 11 | . . 11 . Projectile 114 | . 18 34 62 AOE 7 | . . 7 . Critical Strikes 1 | . . . 1 Damage Taken 1822 | . 151 897 774 Core 612 | . 25 185 402 Absorbed by Shields . | . . . . Core Remaining (%) 58 | 100 . 16 . Volleys Fired 46 | . 19 17 10 Largest 2 | . 2 2 1 Hottest 46 | . 40 46 23 Shots Fired 82 | . 38 34 10 Gun 82 | . 38 34 10 Cannon . | . . . . Launcher . | . . . . Special . | . . . . Kinetic 82 | . 38 34 10 Thermal . | . . . . Explosive . | . . . . Electromagnetic . | . . . . Robot Hit Streak 8 | . 8 6 6 Robot Miss Streak 5 | . 2 5 4 Penetration Max . | . . . . Secondary Targets 5 | . 2 3 . Max Gunslinging Chain 1 | . 1 1 . Shots Hit Robots 59 | . 24 25 10 Core Hits 32 | . 12 17 3 Critical Kills . | . . . . Critical Parts Destroyed . | . . . . Critical Strikes . | . . . . Melee Attacks 1 | . . . 1 Impact . | . . . . Slashing 1 | . . . 1 Piercing . | . . . . Sneak Attacks . | . . . . Combat Hostiles . | . . . . Follow-up Attacks . | . . . . Damage Inflicted 758 | . 260 347 151 Guns 732 | . 260 343 129 Cannons . | . . . . Explosions . | . . . . Melee 22 | . . . 22 Ramming 4 | . . 4 . Kinetic 732 | . 260 343 129 Thermal . | . . . . Explosive . | . . . . Electromagnetic . | . . . . Impact . | . . . . Slashing 22 | . . . 22 Piercing . | . . . . Highest Corruption 4 | . . 4 . Average Corruption 4 | . . 4 . Corruption Purged . | . . . . Corruption Blocked . | . . . . Effects 1 | . . 1 . Message Errors 1 | . . 1 . Overload Shots . | . . . . Overflow Damage . | . . . . Projectiles . | . . . . Explosions . | . . . . Melee . | . . . . Knockbacks . | . . . . Impact . | . . . . Kinetic . | . . . . Secondary . | . . . . Self-Inflicted Damage . | . . . . Shots . | . . . . Rammed . | . . . . Targets Rammed 1 | . . 1 . Kicked 1 | . . 1 . Crushed . | . . . . Highest Temperature . | . . . . Average Temperature . | . . . . Received Heat Transfer 360 | . . . 360 Siege Activations . | . . . . Martial Activations . | . . . . Shielding Activations . | . . . . Robots Disrupted . | . . . . Combat Hostiles . | . . . . Robots Corrupted . | . . . . Combat Hostiles . | . . . . Parts Fried . | . . . . Impact Corruptions . | . . . . Robots Melted . | . . . . Combat Hostiles . | . . . . Parts Melted . | . . . . Heat Transferred . | . . . . Parts Sabotaged . | . . . . Parts Stolen . | . . . . Parts Stripped . | . . . . Power Chain Reactions . | . . . . Alert | -11 -10 -10 -9 ------- Run | Yrd Mat Min Mat Maximum Alert Level . | . . . . Low Security (%) 100 | 100 100 100 100 Level 1 . | . . . . Level 2 . | . . . . Level 3 . | . . . . Level 4 . | . . . . Level 5 . | . . . . High Security . | . . . . Max Security . | . . . . Peak Influence 120 | . 120 20 30 Initial . | . . . . Average 11 | . 23 1 3 Influence Increases 240 | . 170 20 50 Destroy 0b10 Robot/C 180 | . 120 20 40 Destroy 0b10 Robot/NC 15 | . 15 . . Destroy Leader 30 | . 20 . 10 Lose Combat Pursuer 15 | . 15 . . Influence Decreases 240 | . 170 20 50 Time Decay 120 | . 70 10 40 Lost Part 20 | . . 10 10 Purge Threat 100 | . 100 . . Squads Dispatched 1 | . . . 1 Investigation . | . . . . Extermination . | . . . . Reinforcement 1 | . . . 1 Assault . | . . . . Garrison . | . . . . Intercept . | . . . . Searches Triggered . | . . . . Construction Impeded . | . . . . Haulers Reinforced . | . . . . Active Scanning Responses . | . . . . Cargo Convoy Interrupts . | . . . . Stealth | -11 -10 -10 -9 --------- Run | Yrd Mat Min Mat Distress Signals . | . . . . Communications Jammed . | . . . . Distress Signals . | . . . . Times Spotted 29 | . 8 13 8 Peak Tracking Total 6 | . 3 6 4 Tactical Retreats 5 | . 1 2 2 ECM-based Alert Blocks 4 | . . . 4 Traps | -11 -10 -10 -9 ------- Run | Yrd Mat Min Mat Traps Triggered . | . . . . Indirectly . | . . . . Trap Hack Attempts . | . . . . Triggered . | . . . . Disarmed . | . . . . Reprogrammed . | . . . . Reused . | . . . . Traps Extracted . | . . . . Installed . | . . . . Triggered . | . . . . Machines | -11 -10 -10 -9 ---------- Run | Yrd Mat Min Mat Machines Disabled . | . . . . Max in Single Turn . | . . . . Machines Repaired . | . . . . Machines Dismantled . | . . . . Machines Sabotaged . | . . . . Overloaded Fab Kills . | . . . . Hacking | -11 -10 -10 -9 --------- Run | Yrd Mat Min Mat Machines Accessed 2 | . 1 . 1 Terminals 2 | . 1 . 1 Fabricators . | . . . . Repair Stations . | . . . . Recycling Units . | . . . . Scanalyzers . | . . . . Garrison Access . | . . . . Total Hacks 4 | . 2 . 2 Successful 1 | . 1 . . Failed 3 | . 1 . 2 Catastrophic 1 | . 1 . . Database Lockouts . | . . . . Manual 4 | . 2 . 2 Terminals 4 | . 2 . 2 Fabricators . | . . . . Repair Stations . | . . . . Recycling Units . | . . . . Scanalyzers . | . . . . Garrison Access . | . . . . Terminal Hacks 1 | . 1 . . Unreport Threat 1 | . 1 . . Fabricator Hacks . | . . . . Repair Station Hacks . | . . . . Recycling Unit Hacks . | . . . . Scanalyzer . | . . . . Garrison Access Hacks . | . . . . Unauthorized Hacks . | . . . . Terminals . | . . . . Fabricators . | . . . . Repair Stations . | . . . . Recycling Units . | . . . . Scanalyzers . | . . . . Garrison Access . | . . . . Data Cores Recovered . | . . . . Used . | . . . . Hacking Detections 1 | . 1 . . Full Trace Events . | . . . . Feedback Events . | . . . . Feedback Blocked . | . . . . Robot Schematics Acquired . | . . . . Robots Built . | . . . . Authchips . | . . . . Time . | . . . . Total Robot Build Rating . | . . . . Part Schematics Acquired . | . . . . Parts Built . | . . . . Authchips . | . . . . Time . | . . . . Total Part Build Rating . | . . . . Part Studies Acquired . | . . . . Parts Repaired . | . . . . Time . | . . . . Parts Recycled . | . . . . Recycled Matter . | . . . . Retrieved Matter . | . . . . Retrieved Components . | . . . . Parts Scanalyzed . | . . . . Part Schematics Acquired . | . . . . Parts Damaged . | . . . . Bothacking | -11 -10 -10 -9 ------------ Run | Yrd Mat Min Mat Used RIF Installer . | . . . . Robots Hacked . | . . . . Non-combat . | . . . . Combat . | . . . . Robot Hacks Applied . | . . . . Relay Couplers Released . | . . . . Fabnet Peak Effective % . | . . . . Robots Rewired . | . . . . Allies Hacked . | . . . . Hacks Repelled . | . . . . Allies | -11 -10 -10 -9 -------- Run | Yrd Mat Min Mat Total Allies 2 | . . 2 . Largest Group 2 | . . 2 . Highest-Rated Group 45 | . . 45 . Highest-Rated Ally 31 | . . 31 . Total Orders . | . . . . Ally Attacks 4 | . . 4 . Total Damage 64 | . . 64 . Kills . | . . . . Allies Corrupted . | . . . . Allies Melted . | . . . . Intel | -11 -10 -10 -9 ------- Run | Yrd Mat Min Mat Active Infowar (turns) 387 | . 77 37 273 Sensors 182 | . 77 . 105 ECM 310 | . . 37 273 Robot Analysis Total . | . . . . Derelict Logs Recovered . | . . . . Drone Launches . | . . . . Drone Recoveries . | . . . . Exploration | -11 -10 -10 -9 ------------- Run | Yrd Mat Min Mat Turns Passed 876 | 72 372 151 281 Spaces Moved 363 | 46 178 48 91 Core 17 | 13 . 1 3 Treads 226 | 25 178 23 . Legs 112 | . . 24 88 Wheels 8 | 8 . . . Hover . | . . . . Flight . | . . . . Fastest Speed 50 | 50 160 160 190 Average Speed 177 | 118 160 193 233 Slowest Speed 500 | 160 160 500 400 Overloaded Moves . | . . . . Propulsion Burnouts . | . . . . Robots Hopped . | . . . . Potential Cave-ins . | . . . . Cave-ins Triggered . | . . . . Exploration Rate (%) 17 | 4 32 18 15 Regions Visited 3 Branch Regions 1 Pre-discovered Areas . | . . . . Known Exits Taken . | . . . . Unknown Exits Taken 3 | 1 1 1 . Scrap Searched . | . . . . Spaces Dug . | . . . . Terrain Destroyed . | . . . . Melee . | . . . . Projectile . | . . . . AOE . | . . . . Terrain Rammed . | . . . . Walls Destroyed . | . . . . Machines Disabled . | . . . . Actions | -11 -10 -10 -9 --------- Run | Yrd Mat Min Mat Total 517 | 63 232 74 148 Wait 58 | . 15 . 43 Move 360 | 45 177 47 91 Hop . | . . . . Pick Up 19 | 7 12 . . Fast Attach 5 | 5 . . . Attach 16 | 3 3 7 3 Detach 2 | 2 . . . Swap 2 | . 2 . . Drop 7 | 1 4 2 . Fire 46 | . 19 17 10 Melee 1 | . . . 1 Ram . | . . . . Kick 1 | . . 1 . Crush . | . . . . Escape Stasis . | . . . . Rewire . | . . . . Trap . | . . . . Miscellaneous . | . . . . Route ------- -11/Scrapyard -10/Materials -10/Mines -9/Materials History --------- Turn | Location | Event 29 | -11/Scrapyard | Discovered new exit (range 16) 73 | -11/Scrapyard | Entered Materials 310 | -10/Materials | Build established: Mutant 421 | -10/Materials | Discovered new exit (range 16) 445 | -10/Materials | Entered Mines 446 | -10/Mines | Assembled infested the area 524 | -10/Mines | Core integrity fell below 50% 542 | -10/Mines | Lost 3 parts (1p2n) 570 | -10/Mines | Core integrity fell below 20% 574 | -10/Mines | Discovered new exit (range 11) 576 | -10/Mines | Destroyed 7 combat bots 596 | -10/Mines | Entered Materials 596 | -9/Materials | Evolved 2 slots: Utility x2 732 | -9/Materials | Lost 3 parts (1n1u1w) 860 | -9/Materials | Core integrity fell below 50% 872 | -9/Materials | Core integrity fell below 20% 877 | -9/Materials | Destroyed by G-34 Mercenary with Small Laser Last Messages --------------- Current location identified: Materials Aluminum Leg destroyed. Shotgun destroyed. Sensor Array destroyed. Connecting with Scanalyzer... Y-45 Defender destroyed. Acquired 50 matter. ALERT: Hostiles spotted, dispatching reinforcements to Terminal M011. Shotgun destroyed. G-34 Mercenary destroyed. Acquired 11 matter. R-06 Scavenger collects Heat Sink. Lgt. Ion Engine destroyed. U-05 Engineer builds a Door. Aluminum Leg destroyed. Mining Claw destroyed. K-01 Serf collects debris. ECM Suite destroyed. Critical hit (Burn: +37). Map ----- +----------------------------------------------------+ | ?????????????????????????????????########### # " | | ?????????????????????????????????# # # " | | ?????????????????????????????????#"" """ # # " | | ?????????????????????????????????#"T """ # # | | ?????????????????????????????????#"" """ + # " | | ?????????????????????????????????# # # " | | ?????????????????????????????????# =# # " | | ?????????????????????????????????# # # | | ?????????????????????????????????# # # | | ?????????????????????????????????########### + | | ????????????????????##?????????????????????# # | | ????????????????????# #####????????????????# ### | | ????????????????????# ???#######??????# # | | ????????????????????# ??# #??????# # " | | ????????????????????# """ # #??????# # " | | ????????????????????# """"" # #??????# # " | | ????????????????????# """"" # ####+### # | | ????????????????????# """"" # # # | | ????????????????????# """ # + + | | ????????????????????# # # # | | ????????????????????#Y###+#####* # ######/#[= | | ????????????????????# +% # # #%S | | ????????????????????# g #### # # #[" | | ????????????????????# #??# # + # | | ?????????????????#### g #??# # # ## | | ????????????????# @ #??####### # ### | | ?????????? ???? # #?? | | ?????????? ########?? | | ?????????? u #????????? | | ???????????###### ##;########### #????????? | | ????????????????## #? ??????????# #????????? | | ?????????????????# ?? ??????????# #????????? | | ?????????????????# ?# "??????????# #????????? | | ?????????????????# ?# "??????????# #????????? | | ?????????????????# ?# ??????????# #????????? | | ????????????????? ?###??????????# ?????????? | | ???????????????? ??????????????# ?????????? | | ????????????????????????????????????? ?????????? | | ?????????????????????????????????????????????????? | | ?????????????????????????????????????????????????? | | ?????????????????????????????????????????????????? | | ?????????????????????????????????????????????????? | | ?????????????????????????????????????????????????? | | ?????????????????????????????????????????????????? | | ?????????????????????????????????????????????????? | | ?????????????????????????????????????????????????? | | ?????????????????????????????????????????????????? | | ?????????????????????????????????????????????????? | | ?????????????????????????????????????????????????? | | ?????????????????????????????????????????????????? | +----------------------------------------------------+ Best States ------------- Heat Dissipation 28 Energy Generation 10 Energy Capacity 250 Matter Stores 300 Matter Capacity 300 Sight Range 16 Robot Scan Range 14 Terrain Scan Density 85 ECM Strength 1 Evasion (%) 50 Recoil Reduction 2 Item Schematics ----------------- None Robot Schematics ------------------ None Fabricated ------------ Nothing Repaired ---------- Nothing Studied --------- None Alien Tech Used ----------------- None Achievements -------------- None Challenges ------------ None Game ------ Seed HackingThrowingForcegen Manual? 0 Play Time 00:11:13 Cumulative 45.9 hours Start 2026.07.26 @ 17:05:06 End 2026.07.26 @ 17:15:29 Sessions 1 Manual Loads 0 Difficulty Rogue Special Mode None Game No. 82 Rogue 80 Adventurer 0 Explorer 2 Win Type - Total 0 Types 0/0/0/0/0/0/0/0/0/0 Lore% 25 Gallery% 28 Achievement% 20 Wizard Run 0 Options --------- Layout 1 ASCII 0 Keyboard 0 Movement Mouse Keybinds 0 Fullscreen 1 Font 24/Smallcaps Map View 50x35 Zoom Use 0% Tactical HUD 0 Map Filters NONE Filters NONE Steam 1 RUN: 4b5df6f7-246f-4823-8019-9d5b2b24af45